fUST/lending_fUST_20250606
["ID","MTS","AMOUNT","RATE_DAILY","PERIOD"]
[364564967,1749143250727,-440.0,0.0002,2]
[364564968,1749143250748,-479.19912043,0.0002,2]
[364564969,1749143250770,-440.0,0.0002,2]
[364564970,1749143250792,-440.0,0.0002,2]
[364564971,1749143250816,-1555.39,0.0002,2]
[364564972,1749143250838,-440.0,0.0002,2]
[364564973,1749143250858,-390.0,0.0002,2]
[364564974,1749143250880,-431.10680584,0.0002,2]
[364564975,1749143250902,-589.54,0.0002,2]
[364564976,1749143250924,-539.37,0.0002,2]
[364564977,1749143250945,-444.32761816,0.0002,2]
[364564978,1749143250967,-590.94,0.0002,2]
[364564979,1749143250989,-440.0,0.0002,2]
[364564980,1749143251010,-440.0,0.0002,2]
[364564981,1749143251032,-440.0,0.0002,2]
[364564982,1749143251053,-442.49,0.0002,2]
[364564983,1749143251074,-440.0,0.0002,2]
[364564984,1749143251096,-725.37,0.0002,2]
[364564985,1749143251117,-440.0,0.0002,2]
[364564986,1749143251142,-440.0,0.0002,2]
[364564987,1749143251162,-440.0,0.0002,2]
[364564988,1749143251183,-440.0,0.0002,2]
[364564989,1749143251205,-380.0,0.0002,2]
[364564990,1749143251314,-440.0,0.0002,2]
[364564991,1749143251336,-440.0,0.0002,2]
[364564992,1749143251359,-440.0,0.0002,2]
[364564993,1749143251385,-825.29,0.0002,2]
[364564994,1749143251409,-682.33,0.0002,2]
[364564995,1749143251433,-440.0,0.0002,2]
[364564996,1749143251456,-440.0,0.0002,2]
[364564997,1749143251479,-440.0,0.0002,2]
[364564998,1749143251502,-440.0,0.0002,2]
[364564999,1749143251526,-443.53,0.0002,2]
[364565000,1749143251556,-440.0,0.0002,2]
[364565001,1749143251582,-999.88,0.0002,2]
[364565002,1749143251605,-440.0,0.0002,2]
[364565003,1749143251627,-440.0,0.0002,2]
[364565004,1749143251650,-311.27431669,0.0002,2]
[364565005,1749143251672,-440.0,0.0002,2]
[364565006,1749143251695,-932.26,0.0002,2]
[364565007,1749143251717,-500.41,0.0002,2]
[364565008,1749143251739,-440.0,0.0002,2]
[364565009,1749143251761,-440.0,0.0002,2]
[364565010,1749143251789,-1074.84,0.0002,2]
[364565011,1749143251811,-423.76811501,0.0002,2]
[364565012,1749143251832,-267.85071538,0.0002,2]
[364565013,1749143251854,-440.0,0.0002,2]
[364565014,1749143251877,-1282.69,0.0002,2]
[364565015,1749143251902,-440.0,0.0002,2]
[364565016,1749143251923,-440.0,0.0002,2]
[364565017,1749143251947,-2035.66,0.0002,2]
[364565018,1749143251969,-440.0,0.0002,2]
[364565019,1749143251994,-614.93,0.0002,2]
[364565020,1749143252016,-240.0,0.0002002,2]
[364565021,1749143252045,-1883.83208725,0.00020141,2]
[364565022,1749143252068,-482.73714751,0.00020205,2]
[364565023,1749143252091,-440.0,0.00020273,2]
[364565024,1749143252114,-170.51195781,0.00020273,2]
[364565025,1749143252140,-192.48663862,0.00020273,2]
[364565026,1749143252162,-440.0,0.00020273,2]
[364565027,1749143252185,-440.0,0.00020273,2]
[364565028,1749143252208,-440.0,0.00020273,2]
[364565029,1749143252231,-440.0,0.00020273,2]
[364565030,1749143252254,-460.28,0.00020273,2]
[364565031,1749143252276,-410.0,0.00020273,2]
[364565032,1749143252307,-440.0,0.00020273,2]
[364565033,1749143252331,-410.0,0.00020273,2]
[364565034,1749143252355,-440.0,0.00020273,2]
[364565035,1749143252383,-1555.39,0.00020273,2]
[364565036,1749143252406,-440.0,0.00020273,2]
[364565037,1749143252430,-589.54,0.00020273,2]
[364565038,1749143252452,-539.37,0.00020273,2]
[364565039,1749143252477,-590.94,0.00020273,2]
[364565040,1749143252499,-440.0,0.00020273,2]
[364565041,1749143252523,-440.0,0.00020273,2]
[364565042,1749143252551,-440.0,0.00020273,2]
[364565043,1749143252572,-442.49,0.00020273,2]
[364565044,1749143252595,-440.0,0.00020273,2]
[364565045,1749143252618,-725.37,0.00020273,2]
[364565046,1749143252639,-440.0,0.00020273,2]
[364565047,1749143252661,-440.0,0.00020273,2]
[364565048,1749143252684,-440.0,0.00020273,2]
[364565049,1749143252706,-440.0,0.00020273,2]
[364565050,1749143252729,-440.0,0.00020273,2]
[364565051,1749143252752,-440.0,0.00020273,2]
[364565052,1749143252773,-185.31676408,0.00020273,2]
[364565053,1749143252800,-825.29,0.00020273,2]
[364565054,1749143252825,-682.33,0.00020273,2]
[364565055,1749143252848,-440.0,0.00020273,2]
[364565056,1749143252871,-440.0,0.00020273,2]
[364565057,1749143252968,-440.0,0.00020273,2]
[364565058,1749143252998,-443.53,0.00020273,2]
[364565059,1749143253032,-440.0,0.00020273,2]
[364565060,1749143253063,-999.88,0.00020273,2]
[364565061,1749143253093,-303.46,0.00020273,2]
[364565062,1749143253116,-440.0,0.00020273,2]
[364565063,1749143253144,-440.0,0.00020273,2]
[364565064,1749143253170,-932.26,0.00020273,2]
[364565065,1749143253195,-500.41,0.00020273,2]
[364565066,1749143253219,-440.0,0.00020273,2]
[364565067,1749143253245,-1074.84,0.00020273,2]
[364565068,1749143253271,-440.0,0.00020273,2]
[364565069,1749143253296,-1282.69,0.00020273,2]
[364565070,1749143253321,-440.0,0.00020273,2]
[364565071,1749143253345,-441.95401445,0.00020273,2]
[364565072,1749143253372,-2035.66,0.00020273,2]
[364565073,1749143253396,-440.0,0.00020273,2]
[364565074,1749143253421,-614.93,0.00020273,2]
[364565075,1749143253444,-967.41,0.00020294,2]
[364565076,1749143253466,-1000.0,0.00020304,2]
[364565077,1749143253495,-1883.83208725,0.00020348,3]
[364565078,1749143253522,-500.0,0.00020488,2]
[364565079,1749143253548,-16000.0,0.00020537,2]
[364565080,1749143253571,-440.0,0.00020547,2]
[364565081,1749143253595,-440.0,0.00020547,2]
[364565082,1749143253618,-440.0,0.00020547,2]
[364565083,1749143253641,-440.0,0.00020547,2]
[364565084,1749143253665,-440.0,0.00020547,2]
[364565085,1749143253690,-460.28,0.00020547,2]
[364565086,1749143253715,-440.0,0.00020547,2]
[364565087,1749143253740,-440.0,0.00020547,2]
[364565088,1749143253765,-1555.39,0.00020547,2]
[364565089,1749143253790,-440.0,0.00020547,2]
[364565090,1749143253814,-589.54,0.00020547,2]
[364565091,1749143253844,-539.37,0.00020547,2]
[364565092,1749143253869,-590.94,0.00020547,2]
[364565093,1749143253892,-440.0,0.00020547,2]
[364565094,1749143253916,-440.0,0.00020547,2]
[364565095,1749143253940,-440.0,0.00020547,2]
[364565096,1749143253964,-442.49,0.00020547,2]
[364565097,1749143253989,-440.0,0.00020547,2]
[364565098,1749143254013,-725.37,0.00020547,2]
[364565099,1749143254039,-440.0,0.00020547,2]
[364565100,1749143254061,-320.0,0.00020547,2]
[364565101,1749143254085,-440.0,0.00020547,2]
[364565102,1749143254108,-440.0,0.00020547,2]
[364565103,1749143254132,-402.44,0.00020547,2]
[364565104,1749143254159,-825.29,0.00020547,2]
[364565105,1749143254183,-682.33,0.00020547,2]
[364565106,1749143254207,-532.99054282,0.00020547,2]
[364565107,1749143254232,-440.0,0.00020547,2]
[364565108,1749143254256,-505.71,0.00020547,2]
[364565109,1749143254283,-443.53,0.00020547,2]
[364565110,1749143254308,-472.16325569,0.00020547,2]
[364565111,1749143254334,-999.88,0.00020547,2]
[364565112,1749143254358,-440.0,0.00020547,2]
[364565113,1749143254383,-440.0,0.00020547,2]
[364565114,1749143254410,-932.26,0.00020547,2]
[364565115,1749143254432,-500.41,0.00020547,2]
[364565116,1749143254455,-440.0,0.00020547,2]
[364565117,1749143254482,-1074.84,0.00020547,2]
[364565118,1749143254506,-271.97844404,0.00020547,2]
[364565119,1749143254532,-1282.69,0.00020547,2]
[364565120,1749143254558,-440.0,0.00020547,2]
[364565121,1749143254687,-500.0,0.00020547,2]
[364565122,1749143254712,-2035.66,0.00020547,2]
[364565123,1749143254735,-440.0,0.00020547,2]
[364565124,1749143254758,-614.93,0.00020547,2]
[364565125,1749143254780,-162.03892,0.00020548,2]
[364565126,1749143254808,-1883.83208725,0.00020555,3]
[364565127,1749143254830,-1253.37,0.000206,2]
[364565128,1749143254851,-2730.63,0.000206,2]
[364565129,1749143254878,-1883.83208725,0.00020762,3]
[364565130,1749143254899,-482.73714751,0.00020764,2]
[364565131,1749143254921,-440.0,0.00020821,2]
[364565132,1749143254944,-440.0,0.00020821,2]
[364565133,1749143254965,-440.0,0.00020821,2]
[364565134,1749143254987,-440.0,0.00020821,2]
[364565135,1749143255010,-440.0,0.00020821,2]
[364565136,1749143255035,-460.28,0.00020821,2]
[364565137,1749143255057,-450.7901076,0.00020821,2]
[364565138,1749143255080,-440.0,0.00020821,2]
[364565139,1749143255105,-1555.39,0.00020821,2]
[364565140,1749143255127,-440.0,0.00020821,2]
[364565141,1749143255155,-589.54,0.00020821,2]
[364565142,1749143255180,-539.37,0.00020821,2]
[364565143,1749143255203,-590.94,0.00020821,2]
[364565144,1749143255229,-440.0,0.00020821,2]
[364565145,1749143255252,-440.0,0.00020821,2]
[364565146,1749143255275,-440.0,0.00020821,2]
[364565147,1749143255302,-442.49,0.00020821,2]
[364565148,1749143255324,-440.0,0.00020821,2]
[364565149,1749143255347,-725.37,0.00020821,2]
[364565150,1749143255371,-440.0,0.00020821,2]
[364565151,1749143255395,-440.0,0.00020821,2]
[364565152,1749143255424,-380.0,0.00020821,2]
[364565153,1749143255464,-825.29,0.00020821,2]
[364565154,1749143255503,-682.33,0.00020821,2]
[364565155,1749143255540,-440.0,0.00020821,2]
[364565156,1749143255577,-443.53,0.00020821,2]
[364565157,1749143255610,-999.88,0.00020821,2]
[364565158,1749143255648,-440.0,0.00020821,2]
[364565159,1749143255683,-384.94,0.00020821,2]
[364565160,1749143255722,-932.26,0.00020821,2]
[364565161,1749143255754,-500.41,0.00020821,2]
[364565162,1749143255782,-440.0,0.00020821,2]
[364565163,1749143255815,-1074.84,0.00020821,2]
[364565164,1749143255848,-1282.69,0.00020821,2]
[364565165,1749143255878,-440.0,0.00020821,2]
[364565166,1749143255912,-2035.66,0.00020821,2]
[364565167,1749143255943,-440.0,0.00020821,2]
[364565168,1749143255976,-614.93,0.00020821,2]
[364565169,1749143256007,-1500.0,0.00020852,2]
[364565170,1749143256048,-1883.83208725,0.00020969,4]
[364565171,1749143256079,-16000.0,0.00021085,2]
[364565172,1749143256110,-440.0,0.00021095,2]
[364565173,1749143256147,-440.0,0.00021095,2]
[364565174,1749143256175,-440.0,0.00021095,2]
[364565175,1749143256198,-440.0,0.00021095,2]
[364565176,1749143256221,-273.80503044,0.00021095,2]
[364565177,1749143256243,-460.28,0.00021095,2]
[364565178,1749143256269,-440.0,0.00021095,2]
[364565179,1749143256295,-1555.39,0.00021095,2]
[364565180,1749143256318,-440.0,0.00021095,2]
[364565181,1749143256341,-589.54,0.00021095,2]
[364565182,1749143256365,-539.37,0.00021095,2]
[364565183,1749143256559,-590.94,0.00021095,2]
[364565184,1749143256581,-440.0,0.00021095,2]
[364565185,1749143256603,-440.0,0.00021095,2]
[364565186,1749143256628,-442.49,0.00021095,2]
[364565187,1749143256651,-440.0,0.00021095,2]
[364565188,1749143256675,-725.37,0.00021095,2]
[364565189,1749143256698,-440.0,0.00021095,2]
[364565190,1749143256720,-440.0,0.00021095,2]
[364565191,1749143256742,-825.29,0.00021095,2]
[364565192,1749143256765,-682.33,0.00021095,2]
[364565193,1749143256787,-440.0,0.00021095,2]
[364565194,1749143256809,-443.53,0.00021095,2]
[364565195,1749143256833,-999.88,0.00021095,2]
[364565196,1749143256855,-440.0,0.00021095,2]
[364565197,1749143256879,-932.26,0.00021095,2]
[364565198,1749143256901,-500.41,0.00021095,2]
[364565199,1749143256922,-440.0,0.00021095,2]
[364565200,1749143256946,-1074.84,0.00021095,2]
[364565201,1749143256972,-1282.69,0.00021095,2]
[364565202,1749143256995,-440.0,0.00021095,2]
[364565203,1749143257016,-500.0,0.00021095,3]
[364565204,1749143257041,-2035.66,0.00021095,2]
[364565205,1749143257063,-440.0,0.00021095,2]
[364565206,1749143257086,-614.93,0.00021095,2]
[364565207,1749143257112,-1883.83208725,0.00021176,4]
[364565208,1749143257133,-240.14,0.00021369,2]
[364565209,1749143257158,-440.0,0.00021369,2]
[364565210,1749143257180,-440.0,0.00021369,2]
[364565211,1749143257202,-440.0,0.00021369,2]
[364565212,1749143257224,-460.28,0.00021369,2]
[364565213,1749143257245,-400.0,0.00021369,2]
[364565214,1749143257266,-470.0,0.00021369,2]
[364565215,1749143257290,-440.0,0.00021369,2]
[364565216,1749143257315,-1555.39,0.00021369,2]
[364565217,1749143257337,-440.0,0.00021369,2]
[364565218,1749143257360,-589.54,0.00021369,2]
[364565219,1749143257385,-539.37,0.00021369,2]
[364565220,1749143257409,-590.94,0.00021369,2]
[364565221,1749143257430,-151.0,0.00021369,2]
[364565222,1749143257453,-440.0,0.00021369,2]
[364565223,1749143257476,-440.0,0.00021369,2]
[364565224,1749143257498,-442.49,0.00021369,2]
[364565225,1749143257519,-151.0,0.00021369,2]
[364565226,1749143257558,-440.0,0.00021369,2]
[364565227,1749143257583,-725.37,0.00021369,2]
[364565228,1749143257606,-151.0,0.00021369,2]
[364565229,1749143257630,-440.0,0.00021369,2]
[364565230,1749143257653,-440.0,0.00021369,2]
[364565231,1749143257677,-825.29,0.00021369,2]
[364565232,1749143257700,-211.235724,0.00021369,2]
[364565233,1749143257722,-211.235724,0.00021369,2]
[364565234,1749143257744,-151.0,0.00021369,2]
[364565235,1749143257769,-682.33,0.00021369,2]
[364565236,1749143257793,-440.0,0.00021369,2]
[364565237,1749143257817,-443.53,0.00021369,2]
[364565238,1749143257842,-999.88,0.00021369,2]
[364565239,1749143257863,-475.79,0.00021369,2]
[364565240,1749143257887,-932.26,0.00021369,2]
[364565241,1749143257909,-500.41,0.00021369,2]
[364565242,1749143257931,-440.0,0.00021369,2]
[364565243,1749143257956,-1074.84,0.00021369,2]
[364565244,1749143257980,-1282.69,0.00021369,2]
[364565245,1749143258003,-440.0,0.00021369,2]
[364565246,1749143258028,-2035.66,0.00021369,2]
[364565247,1749143258052,-440.0,0.00021369,2]
[364565248,1749143258076,-614.93,0.00021369,2]
[364565249,1749143258104,-1883.83208725,0.00021383,5]
[364565250,1749143258126,-2000.0,0.000214,2]
[364565251,1749143258156,-1883.83208725,0.0002159,5]
[364565252,1749143258179,-3653.82803689,0.000216,2]
[364565253,1749143258202,-207.4,0.00021608,2]
[364565254,1749143258225,-440.0,0.00021643,2]
[364565255,1749143258246,-440.0,0.00021643,2]
[364565256,1749143258269,-440.0,0.00021643,2]
[364565257,1749143258291,-460.28,0.00021643,2]
[364565258,1749143258315,-440.0,0.00021643,2]
[364565259,1749143258340,-1555.39,0.00021643,2]
[364565260,1749143258363,-440.0,0.00021643,2]
[364565261,1749143258386,-589.54,0.00021643,2]
[364565262,1749143258409,-539.37,0.00021643,2]
[364565263,1749143258432,-590.94,0.00021643,2]
[364565264,1749143258456,-411.60536243,0.00021643,2]
[364565265,1749143258687,-440.0,0.00021643,2]
[364565266,1749143258710,-442.49,0.00021643,2]
[364565267,1749143258733,-440.0,0.00021643,2]
[364565268,1749143258756,-725.37,0.00021643,2]
[364565269,1749143258779,-440.0,0.00021643,2]
[364565270,1749143258802,-440.0,0.00021643,2]
[364565271,1749143258825,-825.29,0.00021643,2]
[364565272,1749143258848,-682.33,0.00021643,2]
[364565273,1749143258870,-151.06,0.00021643,2]
[364565274,1749143258893,-443.53,0.00021643,2]
[364565275,1749143259023,-999.88,0.00021643,2]
[364565276,1749143259050,-932.26,0.00021643,2]
[364565277,1749143259072,-500.41,0.00021643,2]
[364565278,1749143259093,-152.44581134,0.00021643,2]
[364565279,1749143259117,-1074.84,0.00021643,2]
[364565280,1749143259143,-1282.69,0.00021643,2]
[364565281,1749143259164,-440.0,0.00021643,2]
[364565282,1749143259189,-2035.66,0.00021643,2]
[364565283,1749143259211,-440.0,0.00021643,2]
[364565284,1749143259233,-614.93,0.00021643,2]
[364565285,1749143259262,-1883.83208725,0.00021797,6]
[364565286,1749143259282,-1289.87,0.00021855,2]
[364565287,1749143259307,-440.0,0.00021917,2]
[364565288,1749143259328,-440.0,0.00021917,2]
[364565289,1749143259349,-440.0,0.00021917,2]
[364565290,1749143259371,-460.28,0.00021917,2]
[364565291,1749143259392,-440.0,0.00021917,2]
[364565292,1749143259416,-1555.39,0.00021917,2]
[364565293,1749143259437,-440.0,0.00021917,2]
[364565294,1749143259462,-589.54,0.00021917,2]
[364565295,1749143259484,-539.37,0.00021917,2]
[364565296,1749143259506,-590.94,0.00021917,2]
[364565297,1749143259527,-500.0,0.00021917,2]
[364565298,1749143259551,-440.0,0.00021917,2]
[364565299,1749143259576,-442.49,0.00021917,2]
[364565300,1749143259599,-440.0,0.00021917,2]
[364565301,1749143259624,-725.37,0.00021917,2]
[364565302,1749143259647,-440.0,0.00021917,2]
[364565303,1749143259669,-440.0,0.00021917,2]
[364565304,1749143259692,-825.29,0.00021917,2]
[364565305,1749143259715,-682.33,0.00021917,2]
[364565306,1749143259737,-443.53,0.00021917,2]
[364565307,1749143259760,-999.88,0.00021917,2]
[364565308,1749143259782,-932.26,0.00021917,2]
[364565309,1749143259806,-500.41,0.00021917,2]
[364565310,1749143259830,-1074.84,0.00021917,2]
[364565311,1749143259853,-1282.69,0.00021917,2]
[364565312,1749143259876,-440.0,0.00021917,2]
[364565313,1749143259900,-2035.66,0.00021917,2]
[364565314,1749143259922,-247.81689148,0.00021917,2]
[364565315,1749143259943,-151.0,0.00021918,2]
[364565316,1749143259963,-151.0,0.00021918,2]
[364565317,1749143259984,-2590.67673037,0.00021948,2]
[364565318,1749143260007,-1253.37,0.00022,7]
[364565319,1749143260028,-177.0,0.00022,2]
[364565320,1749143260059,-1883.83208725,0.00022003,6]
[364565321,1749143260080,-2730.63,0.000221,7]
[364565322,1749143260103,-440.0,0.00022191,2]
[364565323,1749143260124,-440.0,0.00022191,2]
[364565324,1749143260150,-440.0,0.00022191,2]
[364565325,1749143260173,-460.28,0.00022191,2]
[364565326,1749143260197,-440.0,0.00022191,2]
[364565327,1749143260222,-1555.39,0.00022191,2]
[364565328,1749143260247,-440.0,0.00022191,2]
[364565329,1749143260272,-589.54,0.00022191,2]
[364565330,1749143260298,-539.37,0.00022191,2]
[364565331,1749143260324,-590.94,0.00022191,2]
[364565332,1749143260348,-440.0,0.00022191,2]
[364565333,1749143260371,-442.49,0.00022191,2]
[364565334,1749143260395,-440.0,0.00022191,2]
[364565335,1749143260418,-725.37,0.00022191,2]
[364565336,1749143260441,-440.0,0.00022191,2]
[364565337,1749143260463,-440.0,0.00022191,2]
[364565338,1749143260487,-825.29,0.00022191,2]
[364565339,1749143260511,-682.33,0.00022191,2]
[364565340,1749143260542,-443.53,0.00022191,2]
[364565341,1749143260567,-999.88,0.00022191,2]
[364565342,1749143260592,-932.26,0.00022191,2]
[364565343,1749143260614,-500.41,0.00022191,2]
[364565344,1749143260638,-1074.84,0.00022191,2]
[364565345,1749143260663,-1282.69,0.00022191,2]
[364565346,1749143260688,-427.27160208,0.00022191,2]
[364565347,1749143260716,-2035.66,0.00022191,2]
[364565348,1749143260738,-500.0,0.00022199,2]
[364565349,1749143260760,-500.0,0.00022199,2]
[364565350,1749143260782,-500.0,0.00022199,2]
[364565351,1749143260805,-500.0,0.00022199,2]
[364565352,1749143260827,-302.59290177,0.00022199,2]
[364565353,1749143260848,-22537.82,0.000222,2]
[364565354,1749143260869,-2126.51,0.000222,2]
[364565355,1749143260891,-36875.93327572,0.000222,69]
[364565356,1749143260913,-36875.93327568,0.000222,69]
[364565357,1749143260934,-36875.93327568,0.000222,69]
[364565358,1749143260961,-1883.83208725,0.0002221,6]
[364565359,1749143260987,-1883.83208725,0.00022417,7]
[364565360,1749143261009,-440.0,0.00022465,2]
[364565361,1749143261031,-440.0,0.00022465,2]
[364565362,1749143261053,-492.2,0.00022465,2]
[364565363,1749143261077,-460.28,0.00022465,2]
[364565364,1749143261099,-440.0,0.00022465,2]
[364565365,1749143261122,-1555.39,0.00022465,2]
[364565366,1749143261146,-440.0,0.00022465,2]
[364565367,1749143261169,-589.54,0.00022465,2]
[364565368,1749143261192,-539.37,0.00022465,2]
[364565369,1749143261215,-590.94,0.00022465,2]
[364565370,1749143261236,-500.0,0.00022465,2]
[364565371,1749143261260,-440.0,0.00022465,2]
[364565372,1749143261282,-442.49,0.00022465,2]
[364565373,1749143261307,-440.0,0.00022465,2]
[364565374,1749143261330,-725.37,0.00022465,2]
[364565375,1749143261355,-384.94,0.00022465,2]
[364565376,1749143261379,-440.0,0.00022465,2]
[364565377,1749143261403,-825.29,0.00022465,2]
[364565378,1749143261427,-682.33,0.00022465,2]
[364565379,1749143261451,-443.53,0.00022465,2]
[364565380,1749143261475,-999.88,0.00022465,2]
[364565381,1749143261498,-932.26,0.00022465,2]
[364565382,1749143261520,-500.41,0.00022465,2]
[364565383,1749143261545,-1074.84,0.00022465,2]
[364565384,1749143261569,-1282.69,0.00022465,2]
[364565385,1749143261594,-2035.66,0.00022465,2]
[364565386,1749143261620,-1883.83208725,0.00022624,7]
[364565387,1749143261642,-151.0,0.00022659,7]
[364565388,1749143261663,-500.0,0.0002268,2]
[364565389,1749143261685,-36875.93327568,0.00022698,71]
[364565390,1749143261708,-440.0,0.00022739,2]
[364565391,1749143261729,-440.0,0.00022739,2]
[364565392,1749143261752,-460.28,0.00022739,2]
[364565393,1749143261776,-440.0,0.00022739,2]
[364565394,1749143261801,-1555.39,0.00022739,2]
[364565395,1749143261824,-440.0,0.00022739,2]
[364565396,1749143261846,-589.54,0.00022739,2]
[364565397,1749143261869,-539.37,0.00022739,2]
[364565398,1749143261891,-590.94,0.00022739,2]
[364565399,1749143261913,-335.54587285,0.00022739,2]
[364565400,1749143261935,-442.49,0.00022739,2]
[364565401,1749143261956,-440.0,0.00022739,2]
[364565402,1749143261979,-725.37,0.00022739,2]
[364565403,1749143262001,-538.04014939,0.00022739,2]
[364565404,1749143262024,-825.29,0.00022739,2]
[364565405,1749143262164,-682.33,0.00022739,2]
[364565406,1749143262188,-443.53,0.00022739,2]
[364565407,1749143262212,-999.88,0.00022739,2]
[364565408,1749143262235,-932.26,0.00022739,2]
[364565409,1749143262257,-500.41,0.00022739,2]
[364565410,1749143262280,-1074.84,0.00022739,2]
[364565411,1749143262305,-1282.69,0.00022739,2]
[364565412,1749143262331,-2035.66,0.00022739,2]
[364565413,1749143262359,-1883.83208725,0.00022831,8]
[364565414,1749143262381,-709.0,0.00022878,2]
[364565415,1749143262402,-2225.0,0.00022878,2]
[364565416,1749143262423,-405.0,0.00022878,2]
[364565417,1749143262445,-215.0738,0.00022977,2]
[364565418,1749143262467,-440.0,0.00023013,2]
[364565419,1749143262487,-440.0,0.00023013,2]
[364565420,1749143262509,-460.28,0.00023013,2]
[364565421,1749143262530,-440.0,0.00023013,2]
[364565422,1749143262554,-1555.39,0.00023013,2]
[364565423,1749143262576,-284.53,0.00023013,2]
[364565424,1749143262597,-589.54,0.00023013,2]
[364565425,1749143262619,-539.37,0.00023013,2]
[364565426,1749143262641,-590.94,0.00023013,2]
[364565427,1749143262662,-442.49,0.00023013,2]
[364565428,1749143262684,-316.41,0.00023013,2]
[364565429,1749143262707,-725.37,0.00023013,2]
[364565430,1749143262729,-151.0,0.00023013,7]
[364565431,1749143262750,-151.0,0.00023013,7]
[364565432,1749143262773,-825.29,0.00023013,2]
[364565433,1749143262797,-211.235724,0.00023013,7]
[364565434,1749143262819,-151.0,0.00023013,7]
[364565435,1749143262840,-211.235724,0.00023013,7]
[364565436,1749143262864,-151.0,0.00023013,7]
[364565437,1749143262886,-682.33,0.00023013,2]
[364565438,1749143262909,-443.53,0.00023013,2]
[364565439,1749143262933,-999.88,0.00023013,2]
[364565440,1749143262957,-932.26,0.00023013,2]
[364565441,1749143262978,-500.41,0.00023013,2]
[364565442,1749143263001,-1074.84,0.00023013,2]
[364565443,1749143263025,-1282.69,0.00023013,2]
[364565444,1749143263050,-2035.66,0.00023013,2]
[364565445,1749143263071,-12675.11581177,0.0002302,7]
[364565446,1749143263098,-1883.83208725,0.00023038,8]
[364565447,1749143263120,-842.5625,0.000231,7]
[364565448,1749143263144,-200.62794978,0.00023108,7]
[364565449,1749143263170,-1883.83208725,0.00023245,8]
[364565450,1749143263194,-440.0,0.00023287,2]
[364565451,1749143263216,-440.0,0.00023287,2]
[364565452,1749143263239,-460.28,0.00023287,2]
[364565453,1749143263262,-440.0,0.00023287,2]
[364565454,1749143263285,-1555.39,0.00023287,2]
[364565455,1749143263308,-589.54,0.00023287,2]
[364565456,1749143263331,-539.37,0.00023287,2]
[364565457,1749143263354,-590.94,0.00023287,2]
[364565458,1749143263376,-442.49,0.00023287,2]
[364565459,1749143263399,-725.37,0.00023287,2]
[364565460,1749143263421,-825.29,0.00023287,2]
[364565461,1749143263444,-682.33,0.00023287,2]
[364565462,1749143263466,-443.53,0.00023287,2]
[364565463,1749143263490,-999.88,0.00023287,2]
[364565464,1749143263513,-932.26,0.00023287,2]
[364565465,1749143263534,-500.41,0.00023287,2]
[364565466,1749143263560,-1074.84,0.00023287,2]